bitfinex/quotes_BTCUSD_20250412
["timestamp","ask_amount","ask_price","bid_price","bid_amount"]
[1744440493488,0.01,83640.0,83637.0,0.011956]
[1744440493662,0.01,83640.0,83636.0,0.011956]
[1744440493663,0.011956,83639.0,83636.0,0.011956]
[1744440493868,0.011956,83639.0,83634.0,0.011956]
[1744440493869,0.011956,83637.0,83634.0,0.011956]
[1744440494469,0.011956,83638.0,83635.0,0.011956]
[1744440494788,0.011956,83639.0,83635.0,0.011956]
[1744440496487,0.021956,83639.0,83635.0,0.011956]
[1744440496651,0.011956,83637.0,83631.0,0.2511]
[1744440496855,0.011956,83635.0,83631.0,0.2511]
[1744440497071,0.239145,83631.0,83627.0,0.011957]
[1744440497283,0.01,83631.0,83627.0,0.011957]
[1744440498103,0.01,83631.0,83629.0,0.34]
[1744440499612,0.01,83631.0,83628.0,0.351957]
[1744440499824,0.01,83631.0,83628.0,0.591108]
[1744440500097,0.01,83631.0,83630.0,0.239148]
[1744440500333,0.011956,83638.0,83635.0,0.011956]
[1744440500765,0.251084,83637.0,83633.0,0.251096]
[1744440502050,0.011956,83637.0,83633.0,0.251096]
[1744440502798,0.181956,83637.0,83633.0,0.251096]
[1744440504385,0.17,83637.0,83634.0,0.25109]
[1744440504623,0.17,83637.0,83636.0,0.239131]
[1744440504833,0.17,83637.0,83634.0,0.25109]
[1744440505037,0.251065,83644.0,83639.0,0.011956]
[1744440505274,0.011955,83642.0,83639.0,0.011956]
[1744440505392,0.021955,83642.0,83639.0,0.011956]
[1744440506239,0.01,83642.0,83639.0,0.011956]
[1744440506552,0.021955,83642.0,83639.0,0.011956]
[1744440507149,0.021955,83642.0,83639.0,0.251078]
[1744440507365,0.01,83642.0,83639.0,0.251078]
[1744440511829,0.261071,83642.0,83637.0,0.239125]
[1744440512029,0.011956,83640.0,83636.0,0.060856]
[1744440512435,0.181956,83640.0,83636.0,0.011956]
[1744440512858,0.181956,83640.0,83637.0,0.011956]
[1744440515893,0.17,83640.0,83638.0,0.239125]
[1744440516093,0.011955,83641.0,83637.0,0.011956]
[1744440517726,0.011955,83641.0,83637.0,0.251082]
[1744440518055,0.011955,83641.0,83637.0,0.011956]
[1744440518647,0.011955,83641.0,83637.0,0.251082]
[1744440520601,0.01117346,83640.0,83637.0,0.251082]
[1744440521367,0.02117346,83640.0,83637.0,0.251082]
[1744440521585,0.01,83640.0,83637.0,0.251082]
[1744440521979,0.239122,83639.0,83634.0,0.011956]
[1744440522181,0.249122,83639.0,83635.0,0.011956]
[1744440522390,0.261078,83639.0,83635.0,0.011956]
[1744440522563,0.011956,83638.0,83635.0,0.011956]
[1744440522932,0.01119313,83637.0,83635.0,0.011956]
[1744440523337,0.19119313,83637.0,83635.0,0.251088]
[1744440523543,0.25109,83635.0,83630.0,0.34]
[1744440523792,0.011956,83635.0,83632.0,0.011957]
[1744440523988,0.25109,83636.0,83632.0,0.011957]
[1744440524199,0.011957,83629.0,83623.0,0.239166]
[1744440524400,0.251113,83628.0,83620.0,0.011958]
[1744440524647,0.011958,83622.0,83618.0,0.251141]
[1744440524849,0.011958,83623.0,83620.0,0.011958]
[1744440524982,0.239166,83624.0,83620.0,0.011958]
[1744440525331,0.239177,83620.0,83619.0,0.34]
[1744440525537,0.011959,83617.0,83612.0,0.01196]
[1744440525748,0.011959,83617.0,83613.0,0.011959]
[1744440525949,0.239181,83619.0,83613.0,0.011959]
[1744440525950,0.011959,83618.0,83615.0,0.011959]
[1744440526345,0.011959,83618.0,83614.0,0.011959]
[1744440526577,0.011959,83616.0,83613.0,0.351959]
[1744440526984,0.011959,83615.0,83612.0,0.01242564]
[1744440527134,0.239197,83613.0,83612.0,0.00046564]
[1744440527343,0.249197,83613.0,83612.0,0.00046564]
[1744440527983,0.26037743,83613.0,83612.0,0.00046564]
[1744440534971,0.42671897,83613.0,83612.0,0.00046564]
[1744440535402,0.47221897,83613.0,83612.0,0.00046564]
[1744440536272,0.89101897,83613.0,83612.0,0.00046564]
[1744440546026,1.02825897,83613.0,83612.0,0.00046564]
[1744440551531,1.05056179,83613.0,83612.0,0.00046564]
[1744440554539,1.02825897,83613.0,83612.0,0.00046564]
[1744440558272,1.05062085,83613.0,83612.0,0.00046564]
[1744440560329,1.0651617,83613.0,83612.0,0.00046564]
[1744440560791,1.15759622,83613.0,83612.0,0.00046564]
[1744440561011,1.0651617,83613.0,83612.0,0.00046564]
[1744440562381,1.0651617,83613.0,83612.0,6.4e-07]
[1744440562732,0.23922,83605.0,83604.0,0.0008432]
[1744440562950,0.23922,83605.0,83604.0,0.0008898]
[1744440562951,0.96122342,83605.0,83604.0,0.0008898]
[1744440564382,0.97240385,83605.0,83604.0,0.0008898]
[1744440566088,1.09313233,83605.0,83604.0,0.0008898]
[1744440566295,0.97240385,83605.0,83604.0,0.0008898]
[1744440568439,0.97240385,83605.0,83604.0,8e-07]
[1744440568440,1.01870385,83605.0,83604.0,8e-07]
[1744440568653,1.06640385,83605.0,83604.0,8e-07]
[1744440568989,1.18713233,83605.0,83604.0,8e-07]
[1744440569185,1.0809447,83605.0,83604.0,8e-07]
[1744440569599,1.0809447,83605.0,83586.0,0.0008444]
[1744440569600,0.35454085,83604.0,83586.0,0.0008444]
[1744440569820,0.239268,83588.0,83586.0,8e-07]
[1744440570017,0.26902197,83587.0,83586.0,8e-07]
[1744440570234,0.26902197,83587.0,83578.0,0.0008444]
[1744440570235,0.239274,83586.0,83585.0,2e-07]
[1744440570448,0.53919634,83586.0,83585.0,2e-07]
[1744440570851,0.98035822,83586.0,83585.0,2e-07]
[1744440571322,1.1044461,83586.0,83585.0,2e-07]
[1744440571784,1.1655385,83586.0,83585.0,2e-07]
[1744440571945,0.239311,83573.0,83571.0,2e-07]
[1744440572090,0.25784154,83572.0,83571.0,4.679e-05]
[1744440572295,0.90682197,83572.0,83571.0,4.679e-05]
[1744440573186,0.92917183,83572.0,83571.0,4.679e-05]
[1744440574149,1.04990031,83572.0,83571.0,4.679e-05]
[1744440574352,0.90682197,83572.0,83571.0,4.679e-05]
[1744440575763,0.92913744,83572.0,83571.0,4.679e-05]
[1744440579386,0.92917744,83572.0,83571.0,4.679e-05]
[1744440580369,0.23934,83563.0,83561.0,3.9e-07]
[1744440580507,0.53964154,83562.0,83561.0,3.9e-07]
[1744440580730,0.69964154,83562.0,83561.0,3.9e-07]
[1744440581126,0.71082197,83562.0,83561.0,3.9e-07]
[1744440581329,0.17118043,83562.0,83561.0,0.09630039]
[1744440581577,0.01118043,83562.0,83561.0,0.09630039]
[1744440581756,0.01118043,83562.0,83561.0,0.09869374]
[1744440582099,0.239331,83566.0,83565.0,0.0481]
[1744440582232,0.249331,83566.0,83565.0,0.0481]
[1744440585121,0.239343,83562.0,83561.0,0.04820039]
[1744440585292,0.55018454,83562.0,83561.0,3.9e-07]
[1744440585490,0.96898454,83562.0,83561.0,3.9e-07]
[1744440586482,0.98013329,83562.0,83561.0,3.9e-07]
[1744440586683,1.10086177,83562.0,83561.0,3.9e-07]
[1744440587063,1.11540262,83562.0,83561.0,3.9e-07]
[1744440587869,0.99467414,83562.0,83561.0,3.9e-07]
[1744440592862,0.98013329,83562.0,83561.0,3.9e-07]
[1744440593277,1.11717329,83562.0,83561.0,3.9e-07]
[1744440599469,1.1234106,83562.0,83561.0,3.9e-07]
[1744440602178,1.1234106,83562.0,83561.0,3.9e-07]
[1744440602391,0.9863706,83562.0,83561.0,3.9e-07]
[1744440602607,1.1242106,83562.0,83561.0,3.9e-07]
[1744440621122,0.9863706,83562.0,83561.0,3.9e-07]
[1744440621282,1.1242106,83562.0,83561.0,3.9e-07]
[1744440626714,0.239366,83554.0,83553.0,3.9e-07]
[1744440626934,0.60314839,83554.0,83553.0,9.8e-07]
[1744440627280,1.40864839,83554.0,83553.0,9.8e-07]
[1744440627429,1.45340966,83554.0,83553.0,9.8e-07]
[1744440629453,1.41979714,83554.0,83553.0,9.8e-07]
[1744440630088,1.54052562,83554.0,83553.0,9.8e-07]
[1744440630809,1.41979714,83554.0,83553.0,9.8e-07]
[1744440631336,1.55767714,83554.0,83553.0,9.8e-07]
[1744440632708,1.41979714,83554.0,83553.0,9.8e-07]
[1744440633009,1.55719714,83554.0,83553.0,9.8e-07]
[1744440637021,1.55819714,83554.0,83553.0,9.8e-07]
[1744440637198,1.67892562,83554.0,83553.0,9.8e-07]
[1744440638826,1.55819714,83554.0,83553.0,9.8e-07]
[1744440640075,0.2394,83542.0,83541.0,0.002]
[1744440640274,0.92904056,83542.0,83541.0,0.00213983]
[1744440640479,0.94018931,83542.0,83541.0,0.00213983]
[1744440640795,0.94642662,83542.0,83541.0,0.00213983]
[1744440645973,0.94596891,83542.0,83541.0,0.00213983]
[1744440655433,1.08340891,83542.0,83541.0,0.00213983]
[1744440661494,0.96256737,83542.0,83541.0,0.00213983]
[1744440672122,0.82512737,83542.0,83541.0,0.00213983]
[1744440674710,0.94596891,83542.0,83541.0,0.00213983]
[1744440679123,1.08308891,83542.0,83541.0,0.00213983]
[1744440683572,1.18979894,83542.0,83541.0,0.00213983]
[1744440683914,1.08308891,83542.0,83541.0,0.00213983]
[1744440685338,1.10550358,83542.0,83541.0,0.00213983]
[1744440686421,1.08308891,83542.0,83541.0,0.00213983]
[1744440691559,0.94596891,83542.0,83541.0,0.00213983]
[1744440691762,1.08308891,83542.0,83541.0,0.00213983]
[1744440691968,0.94596891,83542.0,83541.0,0.00213983]
[1744440692187,1.08308891,83542.0,83541.0,0.00213983]
[1744440708526,1.0768516,83542.0,83541.0,0.00213983]
[1744440716323,1.0768516,83542.0,83541.0,0.04923983]
[1744440716324,0.57994777,83542.0,83541.0,0.04923983]
[1744440716559,0.16114875,83542.0,83541.0,0.04923983]
[1744440716776,0.40054875,83542.0,83541.0,0.04923983]
[1744440718642,0.52139029,83542.0,83541.0,0.00213983]
[1744440722229,0.94018931,83542.0,83541.0,0.00213983]
[1744440724542,1.07726931,83542.0,83541.0,0.00213983]
[1744440737500,1.12546931,83542.0,83541.0,0.00213983]
[1744440737699,0.35454085,83541.0,83537.0,6.3e-07]
[1744440737981,0.13538239,83538.0,83537.0,6.3e-07]
[1744440738161,0.35188239,83538.0,83537.0,6.3e-07]
[1744440738315,0.23944,83528.0,83527.0,0.0004222]
[1744440738523,0.53028154,83528.0,83527.0,0.0004222]
[1744440738715,0.55269231,83528.0,83527.0,0.0004222]
[1744440738928,0.97149133,83528.0,83527.0,0.0004222]
[1744440739124,0.98264008,83528.0,83527.0,0.0004222]
[1744440743203,0.96022931,83528.0,83527.0,0.0004222]
[1744440745586,0.98260436,83528.0,83527.0,0.0004222]
[1744440746880,0.96022931,83528.0,83527.0,0.0004222]
[1744440747218,0.96646582,83528.0,83527.0,0.0004222]
[1744440754890,1.10354582,83528.0,83527.0,0.0004222]
[1744440763792,0.84562428,83528.0,83527.0,0.0004222]
[1744440764204,0.60618428,83528.0,83527.0,0.0004222]
[1744440769252,0.18738526,83528.0,83527.0,0.0004222]
[1744440771358,0.18114875,83528.0,83527.0,0.0004222]
[1744440772280,0.01114875,83528.0,83527.0,0.0960222]
[1744440772928,0.01114875,83544.0,83541.0,0.01197]
[1744440773096,0.17114875,83544.0,83542.0,0.0488]
[1744440774133,0.01114875,83543.0,83542.0,0.0488]
[1744440774349,0.05114875,83543.0,83542.0,0.0488]
[1744440775447,0.29054575,83543.0,83542.0,0.0488]
[1744440781815,0.279397,83543.0,83542.0,0.0488]
[1744440782787,0.04,83543.0,83542.0,0.0488]
[1744440783861,0.41879902,83572.0,83570.0,0.23932]
[1744440783974,0.13704,83593.0,83570.0,0.23932]
[1744440783975,0.41879902,83581.0,83570.0,0.23932]
[1744440784181,0.41879902,83581.0,83570.0,0.24171294]
[1744440784182,0.00097776,83571.0,83570.0,0.24171294]
[1744440784423,0.00097776,83571.0,83570.0,0.25356533]
[1744440784629,0.00097776,83571.0,83570.0,0.25117239]
[1744440784795,0.00097776,83571.0,83570.0,0.23932]
[1744440785232,0.00097776,83571.0,83570.0,0.57932]
[1744440785455,0.0008446,83588.0,83576.0,0.3877]
[1744440785614,0.0008446,83588.0,83576.0,0.55494154]
[1744440785815,0.0008446,83588.0,83576.0,0.69198154]
[1744440786017,0.0008446,83588.0,83587.0,0.288671]
[1744440790581,0.0008446,83588.0,83587.0,0.79941254]
[1744440792119,0.0008446,83588.0,83587.0,0.81395339]
[1744440792350,0.0008446,83588.0,83587.0,0.85173709]
[1744440793940,0.0008446,83588.0,83587.0,0.79941254]
[1744440794189,0.0008446,83588.0,83587.0,0.93637254]
[1744440799919,0.0008446,83588.0,83587.0,0.79941254]
[1744440800120,0.0008446,83588.0,83587.0,0.93633254]
[1744440802286,0.0008446,83588.0,83587.0,0.95087339]
[1744440802513,6e-07,83588.0,83587.0,0.95087339]
[1744440802917,6e-07,83588.0,83587.0,0.81395339]
[1744440803132,6e-07,83588.0,83587.0,0.95087339]
[1744440803331,6e-07,83588.0,83587.0,1.35907339]
[1744440803524,0.0004226,83620.0,83619.0,0.23918]
[1744440803842,0.00055654,83620.0,83619.0,0.24157146]
[1744440805412,0.00055654,83620.0,83619.0,0.23918]
[1744440805633,0.00055654,83620.0,83619.0,0.24157146]
[1744440805840,0.00055654,83620.0,83615.0,0.011959]
[1744440805841,0.011959,83619.0,83615.0,0.011959]
[1744440806021,0.00055654,83620.0,83617.0,0.011959]
[1744440806216,0.25169354,83620.0,83616.0,0.011959]
[1744440806498,0.01251454,83620.0,83616.0,0.011959]
[1744440806677,0.25169354,83620.0,83616.0,0.011959]
[1744440806859,0.01251454,83620.0,83616.0,0.011959]
[1744440807504,0.02251454,83620.0,83616.0,0.011959]
[1744440807707,0.011959,83619.0,83616.0,0.011959]
[1744440807998,0.021959,83619.0,83616.0,0.011959]
[1744440808746,0.01,83619.0,83616.0,0.251145]
[1744440810101,0.021959,83619.0,83615.0,0.251148]
[1744440810247,0.021959,83619.0,83616.0,0.011959]
[1744440811236,0.01,83619.0,83617.0,0.239185]
[1744440812671,0.01,83619.0,83615.0,0.011959]
[1744440812872,0.01113606,83618.0,83616.0,0.239186]
[1744440813117,0.02113606,83618.0,83616.0,0.239186]
[1744440813512,0.02113606,83618.0,83616.0,0.011959]
[1744440814374,0.02113606,83618.0,83612.0,0.01196]
[1744440814375,0.01113606,83617.0,83612.0,0.34]
[1744440814520,0.02113606,83617.0,83614.0,0.011959]
[1744440814939,0.02113606,83617.0,83614.0,0.251151]
[1744440815316,0.01113606,83616.0,83614.0,0.351959]
[1744440815515,0.01113606,83616.0,83614.0,0.591151]
[1744440816520,0.01113606,83615.0,83614.0,0.591151]
[1744440817649,0.01113606,83615.0,83614.0,0.34]
[1744440817863,0.02113606,83615.0,83614.0,0.34]
[1744440819788,0.02113606,83615.0,83578.0,0.1]
[1744440819996,0.011963,83588.0,83583.0,0.011964]
[1744440820209,0.011963,83591.0,83587.0,0.011963]
[1744440820383,0.011963,83591.0,83588.0,0.011963]
[1744440820540,0.26236206,83590.0,83585.0,0.011963]
[1744440820748,0.011963,83589.0,83586.0,0.05]
[1744440821540,0.01113606,83590.0,83587.0,0.251234]
[1744440821745,0.01113606,83588.0,83587.0,0.251234]
[1744440828049,0.011963,83590.0,83587.0,0.251234]
[1744440829077,0.011963,83591.0,83587.0,0.251234]
[1744440829801,0.011963,83591.0,83588.0,0.011963]
[1744440830812,0.239246,83596.0,83590.0,0.011963]
[1744440831005,0.239246,83596.0,83591.0,0.011963]
[1744440831116,0.01,83594.0,83593.0,0.011962]
[1744440831334,0.01196,83610.0,83606.0,0.239216]
[1744440831557,0.03209392,83610.0,83605.0,0.011961]
[1744440831778,0.01196,83609.0,83606.0,0.01196]
[1744440831974,0.01114764,83608.0,83606.0,0.01196]
[1744440832178,0.02114764,83608.0,83606.0,0.01196]
[1744440832383,0.03310764,83608.0,83605.0,0.011961]
[1744440833031,0.02114764,83608.0,83605.0,0.251179]
[1744440833204,0.01,83608.0,83607.0,0.239214]
[1744440833621,0.01,83608.0,83605.0,0.011961]
[1744440836226,0.01,83608.0,83594.0,0.239251]
[1744440836426,0.239228,83603.0,83599.0,0.251198]
[1744440836891,0.239228,83603.0,83567.0,0.43179]
[1744440836892,0.021961,83603.0,83592.0,0.251217]
[1744440837099,0.239246,83596.0,83592.0,0.251217]
[1744440837284,0.239241,83598.0,83592.0,0.251217]
[1744440837657,0.239245,83597.0,83592.0,0.251217]
[1744440838493,0.011962,83597.0,83593.0,0.251214]
[1744440838700,0.239241,83598.0,83594.0,0.011962]
[1744440838892,0.249241,83598.0,83595.0,0.011962]
[1744440840979,0.261203,83598.0,83595.0,0.011962]
[1744440841461,0.011964,83583.0,83576.0,0.011965]
[1744440841655,0.239287,83582.0,83575.0,0.011965]
[1744440841896,0.239287,83582.0,83564.0,0.011966]
[1744440841897,0.239325,83569.0,83564.0,0.011966]
[1744440842105,0.239328,83567.0,83563.0,0.011967]
[1744440842233,0.011966,83568.0,83563.0,0.011967]
[1744440842639,0.011966,83569.0,83565.0,0.2521436]
[1744440842837,0.011965,83571.0,83567.0,0.011966]
[1744440843402,0.011965,83572.0,83569.0,0.011966]
[1744440844353,0.011965,83571.0,83568.0,0.011966]
[1744440845850,0.46549902,83588.0,83565.0,0.0008436]
[1744440846044,0.011964,83583.0,83577.0,0.239297]
[1744440846245,0.01,83583.0,83581.0,0.239288]
[1744440846491,0.011963,83588.0,83583.0,0.251247]
[1744440846646,0.021963,83588.0,83584.0,0.011964]
[1744440847229,0.011964,83581.0,83571.0,0.011965]
[1744440847483,0.011964,83580.0,83576.0,0.011965]
[1744440847633,0.011964,83580.0,83577.0,0.011965]
[1744440847834,0.011964,83581.0,83578.0,0.011964]
[1744440848190,0.251248,83583.0,83578.0,0.011964]
[1744440848349,0.251237,83586.0,83578.0,0.011964]
[1744440848350,0.011963,83586.0,83582.0,0.251249]
[1744440848554,0.011963,83585.0,83582.0,0.011964]
[1744440848772,0.011963,83585.0,83578.0,0.011964]
[1744440848773,0.058662,83597.0,83590.0,0.251225]
[1744440848973,0.011962,83595.0,83591.0,0.011963]
[1744440849176,0.021962,83595.0,83591.0,0.011963]
[1744440849380,0.011962,83594.0,83591.0,0.011963]
[1744440849579,0.021962,83594.0,83591.0,0.011963]
[1744440849892,0.021962,83594.0,83590.0,0.011963]
[1744440850090,0.021962,83594.0,83582.0,0.239285]
[1744440850091,0.011963,83590.0,83582.0,0.239285]
[1744440850293,0.239276,83586.0,83582.0,0.011964]
[1744440850438,0.011964,83583.0,83578.0,0.011964]
[1744440850657,0.011963,83585.0,83581.0,0.011964]
[1744440851185,0.011963,83585.0,83582.0,0.011964]
[1744440856191,0.251246,83584.0,83578.0,0.25126]
[1744440856386,0.011964,83581.0,83576.0,0.5793]
[1744440856574,0.011964,83581.0,83577.0,0.251262]
[1744440856776,0.011964,83581.0,83578.0,0.011964]
[1744440856984,0.011965,83577.0,83574.0,0.34]
[1744440857218,0.011964,83581.0,83574.0,0.34]
[1744440857219,0.011964,83581.0,83576.0,0.011965]
[1744440857435,0.031964,83581.0,83578.0,0.011964]
[1744440860033,0.031964,83581.0,83577.0,0.251263]
[1744440860034,0.011964,83580.0,83577.0,0.011965]
[1744440860288,0.031964,83580.0,83577.0,0.011965]
[1744440860466,0.251258,83579.0,83574.0,0.579308]
[1744440860673,0.011964,83578.0,83574.0,0.591273]
[1744440860831,0.011964,83578.0,83574.0,0.251273]
[1744440861374,0.011964,83578.0,83575.0,0.011965]
[1744440863023,0.251258,83579.0,83575.0,0.011965]
[1744440863607,0.251258,83579.0,83575.0,0.251268]
[1744440863809,0.251258,83579.0,83575.0,0.011897]
[1744440864331,0.261258,83579.0,83575.0,0.251201]
[1744440864825,0.261258,83579.0,83576.0,0.011965]
[1744440865030,0.261258,83579.0,83575.0,0.011897]
[1744440865230,0.261258,83579.0,83576.0,0.011965]
[1744440866091,0.021964,83579.0,83576.0,0.011965]
[1744440868077,0.01,83579.0,83576.0,0.011965]
[1744440868503,0.01,83579.0,83577.0,0.24169289]
[1744440868726,0.011963,83587.0,83582.0,0.011964]
[1744440868953,0.011962,83592.0,83582.0,0.00239271]
[1744440869168,0.28122,83592.0,83587.0,0.011963]
[1744440869362,0.239262,83591.0,83587.0,0.011963]
[1744440869550,0.239262,83591.0,83575.0,0.0475]
[1744440869551,0.011964,83579.0,83576.0,0.011965]
[1744440869745,0.011966,83568.0,83565.0,0.0008436]
[1744440869918,0.239331,83567.0,83565.0,0.0008436]
[1744440870112,0.17014154,83566.0,83565.0,0.0008436]
[1744440870487,0.39874154,83566.0,83565.0,0.0008436]
[1744440871690,0.40992483,83566.0,83565.0,0.0008436]
[1744440874623,0.82872385,83566.0,83565.0,0.0008436]
[1744440880916,0.82872385,83566.0,83565.0,6e-07]
[1744440881438,0.96560385,83566.0,83565.0,6e-07]
[1744440881856,0.82872385,83566.0,83565.0,6e-07]
[1744440882078,0.60998231,83566.0,83565.0,6e-07]
[1744440883755,0.73082385,83566.0,83565.0,6e-07]
[1744440886098,0.60998231,83566.0,83565.0,6e-07]
[1744440886302,0.19118329,83566.0,83565.0,0.2393346]
[1744440886508,0.011964,83578.0,83566.0,0.011966]
[1744440886509,0.011965,83571.0,83566.0,0.011966]
[1744440886860,0.239331,83566.0,83565.0,6e-07]
[1744440887061,0.249331,83566.0,83565.0,6e-07]
[1744440890655,0.2604965,83566.0,83565.0,6e-07]
[1744440894968,0.42923804,83566.0,83565.0,6e-07]
[1744440895180,0.47743804,83566.0,83565.0,6e-07]
[1744440895375,0.61431804,83566.0,83565.0,6e-07]
[1744440896979,0.60315254,83566.0,83565.0,6e-07]
[1744440897557,1.02195156,83566.0,83565.0,6e-07]
[1744440897977,1.03649241,83566.0,83565.0,6e-07]
[1744440899539,1.49822089,83566.0,83565.0,6e-07]
[1744440899789,1.50941588,83566.0,83565.0,6e-07]
[1744440900787,1.3886874,83566.0,83565.0,6e-07]
[1744440901021,1.37649241,83566.0,83565.0,6e-07]
[1744440901174,1.23961241,83566.0,83565.0,6e-07]
[1744440901380,1.37653241,83566.0,83565.0,6e-07]
[1744440902076,1.38376765,83566.0,83565.0,6e-07]
[1744440902278,0.0915,83544.0,83542.0,6e-07]
[1744440902479,0.91595696,83543.0,83542.0,0.00013416]
[1744440902816,1.08595696,83543.0,83542.0,0.00013416]
[1744440903831,1.10049781,83543.0,83542.0,0.00013416]
[1744440904052,0.01454085,83542.0,83541.0,1.6e-07]
[1744440904257,0.29538239,83542.0,83541.0,1.6e-07]
[1744440904886,0.30542776,83542.0,83541.0,1.6e-07]
[1744440905548,0.28084154,83542.0,83541.0,1.6e-07]
[1744440905743,0.84655999,83542.0,83541.0,1.6e-07]
[1744440906157,0.86110084,83542.0,83541.0,1.6e-07]
[1744440906399,0.91090084,83542.0,83541.0,1.6e-07]
[1744440907677,0.83655996,83542.0,83541.0,1.6e-07]
[1744440907995,0.69963996,83542.0,83541.0,1.6e-07]
[1744440908130,0.83651996,83542.0,83541.0,1.6e-07]
[1744440910190,0.57879842,83542.0,83541.0,1.6e-07]
[1744440916950,0.69963996,83542.0,83541.0,1.6e-07]
[1744440917311,0.75269157,83542.0,83541.0,1.6e-07]
[1744440917440,0.71418081,83542.0,83541.0,1.6e-07]
[1744440920706,0.83655996,83542.0,83541.0,1.6e-07]
[1744440920878,0.69963996,83542.0,83541.0,1.6e-07]
[1744440921077,0.83655996,83542.0,83541.0,1.6e-07]
[1744440925259,0.16,83542.0,83541.0,1.6e-07]
[1744440927389,0.01197,83536.0,83528.0,0.305138]
[1744440927859,0.23942,83535.0,83533.0,0.0008436]
[1744440931176,0.41942,83535.0,83533.0,0.0008436]
[1744440938800,0.18,83535.0,83533.0,0.0008436]
[1744440939999,0.419422,83535.0,83533.0,0.0008436]
[1744440940420,0.54026354,83535.0,83533.0,0.0008436]
[1744440940616,0.284826,83533.0,83531.0,4e-07]
[1744440940789,0.12084154,83532.0,83531.0,4e-07]
[1744440940975,0.74418081,83532.0,83531.0,4e-07]
[1744440941578,0.011971,83530.0,83527.0,6e-07]
[1744440941784,0.37482239,83528.0,83527.0,6e-07]
[1744440941982,0.58082239,83528.0,83527.0,6e-07]
[1744440943503,0.25400085,83521.0,83520.0,6e-07]
[1744440943715,0.94364081,83521.0,83520.0,6e-07]
[1744440944790,0.59401585,83516.0,83515.0,5e-07]
[1744440944998,1.03173739,83516.0,83515.0,5e-07]
[1744440946465,1.01719654,83516.0,83515.0,5e-07]
[1744440947864,1.03173739,83516.0,83515.0,5e-07]
[1744440948006,1.45053581,83516.0,83515.0,5e-07]
[1744440951571,1.47076269,83516.0,83515.0,5e-07]
[1744440952445,0.25402685,83512.0,83511.0,5e-07]
[1744440952589,0.35454085,83508.0,83507.0,1e-06]
[1744440952790,0.65538239,83508.0,83507.0,1e-06]
[1744440953964,0.71963996,83508.0,83507.0,1e-06]
[1744440954555,0.61963996,83508.0,83507.0,1e-06]
[1744440955332,0.62652,83500.0,83499.0,3e-07]
[1744440955501,1.34070081,83500.0,83499.0,3e-07]
[1744440955702,1.47762081,83500.0,83499.0,3e-07]
[1744440957721,1.32615996,83500.0,83499.0,3e-07]
[1744440957926,1.41607996,83500.0,83499.0,3e-07]
[1744440958282,1.07607996,83500.0,83499.0,3e-07]
[1744440960004,0.93915996,83500.0,83499.0,3e-07]
[1744440960169,0.81831842,83500.0,83499.0,3e-07]
[1744440960750,0.57879842,83500.0,83499.0,3e-07]
[1744440962606,0.41879842,83500.0,83499.0,3e-07]
[1744440965446,0.13692,83512.0,83499.0,3e-07]
[1744440965447,0.251462,83512.0,83509.0,0.0475]
[1744440965646,0.239491,83511.0,83509.0,0.0475]
[1744440965788,0.259491,83511.0,83509.0,0.0475]
[1744440969083,0.02,83511.0,83509.0,0.0475]
[1744440969243,0.02,83511.0,83510.0,0.239492]
[1744440970651,0.011973,83517.0,83513.0,0.239482]
[1744440970851,0.081973,83517.0,83513.0,0.239482]
[1744440972206,0.011973,83516.0,83510.0,0.239492]
[1744440972401,0.011974,83513.0,83510.0,0.239492]
[1744440972623,0.031974,83513.0,83510.0,0.239492]
[1744440972810,0.02,83513.0,83511.0,0.239487]
[1744440973017,0.031974,83513.0,83510.0,0.239492]
[1744440973196,0.02,83513.0,83510.0,0.239492]
[1744440973927,0.02,83513.0,83511.0,0.239486]
[1744440976642,0.02,83513.0,83510.0,0.251465]
[1744440976846,0.015,83513.0,83510.0,0.251465]
[1744440977055,0.015,83513.0,83511.0,0.239487]
[1744440977258,0.026974,83513.0,83510.0,0.239491]
[1744440979662,0.015,83513.0,83510.0,0.239491]
[1744440979842,0.026974,83513.0,83510.0,0.239491]
[1744440982795,0.015,83513.0,83510.0,0.239491]
[1744440983407,0.026974,83513.0,83510.0,0.239491]
[1744440985520,0.015,83513.0,83510.0,0.239491]
[1744440985656,0.011974,83512.0,83509.0,0.0475]
[1744440985859,0.266462,83512.0,83509.0,0.0475]
[1744440986084,0.026974,83512.0,83509.0,0.0475]
[1744440986872,0.015,83512.0,83509.0,0.286992]
[1744440987103,0.015,83512.0,83509.0,0.298966]
[1744440987306,0.026974,83512.0,83509.0,0.286992]
[1744440990153,0.026974,83512.0,83509.0,0.239492]
[1744440994529,0.011974,83511.0,83508.0,0.00748178]
[1744440994948,0.011974,83514.0,83509.0,0.239495]
[1744440995151,0.011974,83511.0,83510.0,0.00748178]
[1744440996075,0.011974,83513.0,83510.0,0.00748178]
[1744440996399,0.26146,83513.0,83511.0,0.00748178]
[1744440997399,0.26146,83513.0,83512.0,0.00748178]
[1744441006482,0.01,83513.0,83512.0,0.00748178]
[1744441007668,0.0569,83513.0,83512.0,0.00748178]
[1744441007870,0.011975,83502.0,83499.0,3e-07]
[1744441008072,0.021975,83502.0,83499.0,3e-07]
[1744441008318,0.239518,83501.0,83499.0,3e-07]
[1744441008454,0.01,83501.0,83499.0,3e-07]
[1744441008816,0.011974,83512.0,83508.0,0.011974]
[1744441009013,0.01,83512.0,83509.0,0.24697671]
[1744441009244,0.01,83512.0,83509.0,0.00748171]
[1744441009445,0.01,83512.0,83510.0,0.00748171]
[1744441009648,0.011974,83513.0,83510.0,0.00748171]
[1744441009787,0.021974,83513.0,83511.0,0.00748171]
[1744441010209,0.021974,83513.0,83510.0,0.00748171]
[1744441010613,0.021974,83513.0,83511.0,0.00748171]
[1744441011008,0.021974,83513.0,83510.0,0.00748171]
[1744441011796,0.021974,83513.0,83511.0,0.00748171]
[1744441011993,0.021974,83513.0,83510.0,0.00748171]
[1744441012601,0.021974,83513.0,83511.0,0.00748171]
[1744441012924,0.021974,83513.0,83512.0,0.00748171]
[1744441013263,0.021974,83513.0,83510.0,0.00748171]
[1744441013661,0.021974,83513.0,83511.0,0.00748171]
[1744441014169,0.021974,83513.0,83512.0,0.00748171]